bitfinex-derivatives/quotes_ETHF0:USTF0_20260119
["timestamp","ask_amount","ask_price","bid_price","bid_amount"]
[1768825503075,1.28267919,3226.8,3225.6,0.18459329]
[1768825503468,0.00358502,3227.2,3225.8,0.18459329]
[1768825503668,0.98932008,3227.1,3225.8,0.18459329]
[1768825503874,0.00358502,3227.2,3225.8,0.18459329]
[1768825504075,0.98937874,3227.1,3225.8,0.18459329]
[1768825504280,0.00358502,3227.2,3225.8,0.18459329]
[1768825504467,0.98943628,3227.1,3225.8,0.18459329]
[1768825504672,0.00358502,3227.2,3225.8,0.18459329]
[1768825504975,0.98942925,3227.1,3225.8,0.18459329]
[1768825505176,0.00358502,3227.2,3225.8,0.18459329]
[1768825505376,0.98952839,3227.1,3225.8,0.18459329]
[1768825505687,0.00358502,3227.2,3225.8,0.18459329]
[1768825505981,0.98960004,3227.1,3225.8,0.18459329]
[1768825506181,0.00358502,3227.2,3225.9,0.18459329]
[1768825506385,0.9896961,3227.1,3225.9,0.18459329]
[1768825506574,0.00358502,3227.2,3225.9,0.18459329]
[1768825506774,0.98970455,3227.1,3225.9,0.18459329]
[1768825506974,0.00358502,3227.2,3225.9,0.18459329]
[1768825507182,0.9897021,3227.1,3225.9,0.18459329]
[1768825507482,0.00358502,3227.2,3225.9,0.18459329]
[1768825507685,0.98980833,3227.1,3225.9,0.18459329]
[1768825507882,0.00358502,3227.2,3225.9,0.18459329]
[1768825508084,0.98978252,3227.1,3225.9,0.18459329]
[1768825508384,0.00358502,3227.2,3225.9,0.18459329]
[1768825508683,0.98990351,3227.1,3225.9,0.18459329]
[1768825508886,0.00358502,3227.2,3225.9,0.18459329]
[1768825509087,0.98990702,3227.1,3225.9,0.18459329]
[1768825509287,0.00358502,3227.2,3225.9,0.18459329]
[1768825509581,0.99000426,3227.1,3225.9,0.18459329]
[1768825509781,0.00358502,3227.2,3225.9,0.18459329]
[1768825509977,0.99000975,3227.1,3225.9,0.18459329]
[1768825510177,0.00358502,3227.2,3225.9,0.18459329]
[1768825510379,0.99013944,3227.1,3225.9,0.18459329]
[1768825510581,0.00358502,3227.2,3225.9,0.18459329]
[1768825510882,0.9901082,3227.1,3225.9,0.18459329]
[1768825511082,0.00358502,3227.2,3225.9,0.18459329]
[1768825511281,0.99015533,3227.1,3225.9,0.18459329]
[1768825511480,0.00358502,3227.2,3225.9,0.18459329]
[1768825511680,0.99012694,3227.1,3225.9,0.18459329]
[1768825511871,0.00358502,3227.2,3225.9,0.18459329]
[1768825512080,0.99012732,3227.1,3225.9,0.18459329]
[1768825512394,0.99012732,3227.0,3225.9,0.18459329]
[1768825512680,0.00358502,3227.2,3225.9,0.18459329]
[1768825512889,0.99014286,3227.1,3225.9,0.18459329]
[1768825513191,0.99014286,3227.0,3225.9,0.18459329]
[1768825513378,1.28267919,3227.1,3225.9,0.18459329]
[1768825513685,0.99016165,3227.0,3225.9,0.18459329]
[1768825513880,1.28267919,3227.1,3225.9,0.18459329]
[1768825514083,0.9902049,3227.0,3225.9,0.18459329]
[1768825514284,1.28267919,3227.1,3225.9,0.18459329]
[1768825514485,0.9901388,3227.0,3225.9,0.18459329]
[1768825514685,1.28267919,3227.1,3225.9,0.18459329]
[1768825514888,0.99024884,3227.0,3225.9,0.18459329]
[1768825515089,1.28267919,3227.1,3225.9,0.18459329]
[1768825515387,0.99027335,3227.0,3225.9,0.18459329]
[1768825515591,1.28267919,3227.1,3225.9,0.18459329]
[1768825515790,0.99027819,3227.0,3225.9,0.18459329]
[1768825515989,1.28267919,3227.1,3225.9,0.18459329]
[1768825516292,0.99032568,3227.0,3225.9,0.18459329]
[1768825516590,1.28267919,3227.1,3225.9,0.18459329]
[1768825516791,0.99029361,3227.0,3225.9,0.18459329]
[1768825516978,1.28267919,3227.1,3225.9,0.18459329]
[1768825517181,0.99029732,3227.0,3225.9,0.18459329]
[1768825517380,1.28267919,3227.1,3225.9,0.18459329]
[1768825517579,0.99031162,3227.0,3225.9,0.18459329]
[1768825517783,1.28267919,3227.1,3225.9,0.18459329]
[1768825517980,0.99031165,3227.0,3225.9,0.18459329]
[1768825518184,1.28267919,3227.1,3225.9,0.18459329]
[1768825518397,0.9902916,3227.0,3225.9,0.18459329]
[1768825518591,1.28267919,3226.9,3225.9,0.18459329]
[1768825520601,1.28267919,3227.1,3225.9,0.18459329]
[1768825520785,0.99042426,3227.0,3225.9,0.18459329]
[1768825520990,1.28267919,3227.1,3225.9,0.18459329]
[1768825521191,0.99042426,3227.0,3225.9,0.18459329]
[1768825521393,1.28267919,3227.1,3225.9,0.18459329]
[1768825521695,0.99044391,3227.0,3225.9,0.18459329]
[1768825521997,0.00358502,3227.2,3225.9,0.18459329]
[1768825522200,2.27312895,3227.1,3225.9,0.18459329]
[1768825522396,0.99044976,3227.0,3225.9,0.18459329]
[1768825522591,1.28267919,3227.1,3225.9,0.18459329]
[1768825522793,0.99047331,3227.0,3225.9,0.18459329]
[1768825523091,1.28267919,3227.1,3225.9,0.18459329]
[1768825523295,0.99047804,3227.0,3225.9,0.18459329]
[1768825523493,1.28267919,3227.1,3225.9,0.18459329]
[1768825523695,0.99050687,3227.0,3225.9,0.18459329]
[1768825523991,1.28267919,3227.1,3225.9,0.18459329]
[1768825524193,0.99052592,3227.0,3225.9,0.18459329]
[1768825524490,1.28267919,3227.1,3225.9,0.18459329]
[1768825524689,0.99055741,3227.0,3225.9,0.18459329]
[1768825524895,1.28267919,3227.1,3225.9,0.18459329]
[1768825525097,0.99055727,3227.0,3225.9,0.18459329]
[1768825525296,1.28267919,3227.1,3225.9,0.18459329]
[1768825525598,0.99062246,3227.0,3225.9,0.18459329]
[1768825525799,1.28267919,3227.1,3225.9,0.18459329]
[1768825526097,0.99062192,3227.0,3225.9,0.18459329]
[1768825526298,1.28267919,3227.1,3225.9,0.18459329]
[1768825526590,0.99076728,3227.0,3225.9,0.18459329]
[1768825526794,1.28267919,3227.1,3225.9,0.18459329]
[1768825526990,0.99076795,3227.0,3225.9,0.18459329]
[1768825527207,1.28267919,3227.1,3225.9,0.18459329]
[1768825527408,0.99090386,3227.0,3225.9,0.18459329]
[1768825527603,1.28267919,3227.1,3225.9,0.18459329]
[1768825527805,0.99093832,3227.0,3225.9,0.18459329]
[1768825528109,0.99110938,3226.9,3225.9,0.18459329]
[1768825528320,1.28267919,3227.1,3225.9,0.18459329]
[1768825528515,0.99114202,3227.0,3225.9,0.18459329]
[1768825528713,0.99114202,3226.9,3225.9,0.18459329]
[1768825529019,1.28267919,3226.9,3225.9,0.18459329]
[1768825531312,0.99282567,3226.8,3225.9,0.18459329]
[1768825531519,1.28267919,3226.9,3225.9,0.18459329]
[1768825531718,0.99282735,3226.8,3225.9,0.18459329]
[1768825532019,1.28267919,3226.9,3225.9,0.18459329]
[1768825532212,0.99282735,3226.8,3225.9,0.18459329]
[1768825532412,0.99282735,3226.7,3225.9,0.18459329]
[1768825532615,1.28267919,3226.9,3225.9,0.18459329]
[1768825532919,0.99312503,3226.8,3225.9,0.18459329]
[1768825533120,0.99312503,3226.7,3225.9,0.18459329]
[1768825533310,1.28267919,3226.9,3225.9,0.18459329]
[1768825533510,0.993342,3226.8,3225.9,0.18459329]
[1768825533714,0.993342,3226.7,3225.9,0.18459329]
[1768825533916,1.28267919,3226.9,3225.9,0.18459329]
[1768825534116,0.99095801,3226.8,3225.9,0.18459329]
[1768825534317,0.99095801,3226.7,3225.9,0.18459329]
[1768825534522,1.28267919,3227.0,3225.9,0.18459329]
[1768825534723,0.99096503,3226.9,3225.9,0.18459329]
[1768825535028,0.99096503,3226.8,3225.9,0.18459329]
[1768825535216,0.99096503,3226.7,3225.9,0.18459329]
[1768825535515,1.28267919,3227.0,3225.9,0.18459329]
[1768825535714,0.99098609,3226.9,3225.9,0.18459329]
[1768825536015,0.99098609,3226.8,3225.9,0.18459329]
[1768825536215,0.99098609,3226.7,3225.9,0.18459329]
[1768825536421,1.28267919,3227.0,3225.9,0.18459329]
[1768825536721,0.9909889,3226.9,3225.9,0.18459329]
[1768825536916,0.9909889,3226.8,3225.9,0.18459329]
[1768825537223,0.9909889,3226.7,3225.9,0.18459329]
[1768825537422,1.28267919,3227.0,3225.9,0.18459329]
[1768825537623,0.9909957,3226.9,3225.9,0.18459329]
[1768825537931,1.28267919,3226.3,3225.3,0.3518399]
[1768825538115,1.28267919,3226.3,3225.3,0.1551]
[1768825539327,0.18046646,3226.8,3225.3,0.1551]
[1768825539328,1.28267919,3226.5,3225.3,0.34844012]
[1768825539524,0.98995492,3226.4,3225.3,0.34844012]
[1768825539715,1.28267919,3226.7,3225.4,0.19334012]
[1768825539912,0.98996438,3226.6,3225.4,0.19334012]
[1768825540116,0.98996438,3226.5,3225.4,0.19334012]
[1768825540318,0.98996438,3226.4,3225.4,0.19334012]
[1768825540531,1.28267919,3226.7,3225.4,0.19334012]
[1768825540733,0.98977631,3226.6,3225.4,0.19334012]
[1768825541029,0.98977631,3226.5,3225.4,0.19334012]
[1768825541229,0.98977631,3226.4,3225.4,0.19334012]
[1768825541428,1.66349502,3227.0,3225.8,0.19334012]
[1768825541620,2.65317944,3227.0,3225.8,0.19334012]
[1768825542331,1.28267919,3226.9,3225.8,0.19334012]
[1768825542528,0.98968442,3226.8,3225.8,0.19334012]
[1768825542730,0.98968442,3226.7,3225.8,0.19334012]
[1768825542924,0.98968442,3226.6,3225.4,0.34844012]
[1768825543223,0.98968442,3226.5,3225.4,0.34844012]
[1768825543422,0.98968442,3226.4,3225.4,0.34844012]
[1768825543622,1.28267919,3226.7,3225.5,0.19334012]
[1768825543823,0.98961843,3226.6,3225.5,0.19334012]
[1768825544123,0.98961843,3226.5,3225.5,0.19334012]
[1768825544434,0.98961843,3226.4,3225.5,0.19334012]
[1768825544629,1.28267919,3226.7,3225.5,0.19334012]
[1768825544830,0.98953904,3226.6,3225.5,0.19334012]
[1768825545132,0.98953904,3226.5,3225.5,0.19334012]
[1768825545324,1.28267919,3226.7,3225.5,0.19334012]
[1768825545526,0.98945672,3226.6,3225.5,0.19334012]
[1768825545735,0.98945672,3226.5,3225.5,0.19334012]
[1768825546032,1.28267919,3226.7,3225.5,0.19334012]
[1768825546234,0.98945015,3226.6,3225.5,0.19334012]
[1768825546431,0.98945015,3226.5,3225.5,0.19334012]
[1768825546636,1.28267919,3226.7,3225.5,0.19334012]
[1768825546832,0.98939383,3226.6,3225.5,0.19334012]
[1768825547036,0.98939383,3226.5,3225.5,0.19334012]
[1768825547330,1.28267919,3226.7,3225.5,0.19334012]
[1768825547532,0.98934693,3226.6,3225.5,0.19334012]
[1768825547722,0.98934693,3226.5,3225.5,0.19334012]
[1768825547923,1.28267919,3226.7,3225.5,0.19334012]
[1768825548125,0.98937818,3226.6,3225.5,0.19334012]
[1768825548326,0.98937818,3226.5,3225.5,0.19334012]
[1768825548529,1.28267919,3226.7,3225.5,0.19334012]
[1768825548735,0.98933539,3226.6,3225.4,0.1551]
[1768825548939,0.98933539,3226.5,3225.4,0.1551]
[1768825549137,1.28267919,3226.7,3225.4,0.1551]
[1768825549338,0.9893601,3226.6,3225.4,0.1551]
[1768825549638,0.9893601,3226.5,3225.4,0.1551]
[1768825549838,1.28267919,3226.7,3225.4,0.1551]
[1768825550038,0.98932096,3226.6,3225.4,0.1551]
[1768825550241,0.98932096,3226.5,3225.4,0.1551]
[1768825550435,1.28267919,3226.7,3225.4,0.1551]
[1768825550735,0.98927735,3226.6,3225.4,0.1551]
[1768825550924,0.98927735,3226.5,3225.4,0.1551]
[1768825551124,1.28267919,3226.7,3225.4,0.1551]
[1768825551324,0.98892812,3226.6,3225.4,0.1551]
[1768825551524,0.98892812,3226.5,3225.4,0.1551]
[1768825551736,1.28267919,3226.6,3225.6,0.15509]
[1768825551937,0.9889151,3226.5,3225.6,0.15509]
[1768825552138,1.28267919,3226.6,3225.6,0.15509]
[1768825552336,0.98891599,3226.5,3225.6,0.15509]
[1768825552634,1.28267919,3226.6,3225.6,0.15509]
[1768825552834,0.98892522,3226.5,3225.6,0.15509]
[1768825553036,1.28267919,3226.6,3225.6,0.15509]
[1768825553229,0.98892514,3226.5,3225.6,0.15509]
[1768825553431,1.28267919,3226.6,3225.6,0.15509]
[1768825553632,0.98892842,3226.5,3225.2,0.0021796]
[1768825553939,1.28267919,3226.6,3225.2,0.0021796]
[1768825554130,0.98892663,3226.5,3225.2,0.0021796]
[1768825554330,1.28267919,3226.6,3225.2,0.0021796]
[1768825554532,0.98894214,3226.5,3225.2,0.0021796]
[1768825554732,1.28267919,3226.6,3225.2,0.0021796]
[1768825554941,0.98893829,3226.5,3225.2,0.0021796]
[1768825555145,1.28267919,3226.6,3225.2,0.0021796]
[1768825555443,0.98893867,3226.5,3225.2,0.0021796]
[1768825555641,1.28267919,3226.6,3225.2,0.0021796]
[1768825555836,0.98896369,3226.5,3225.2,0.0021796]
[1768825556136,1.28267919,3226.6,3225.2,0.0021796]
[1768825556335,0.9887522,3226.5,3225.2,0.0021796]
[1768825556537,1.28267919,3226.6,3225.2,0.0021796]
[1768825556736,0.988775,3226.5,3225.2,0.0021796]
[1768825557043,0.18509401,3226.8,3225.2,0.0021796]
[1768825557241,0.98877774,3226.7,3225.2,0.0021796]
[1768825557541,0.98877774,3226.6,3225.2,0.0021796]
[1768825557743,0.18509401,3226.8,3225.2,0.0021796]
[1768825557744,0.98877774,3226.5,3225.2,0.0021796]
[1768825558041,0.18509401,3226.8,3225.2,0.0021796]
[1768825558241,0.988822,3226.7,3225.2,0.0021796]
[1768825558442,0.988822,3226.6,3225.2,0.0021796]
[1768825558643,0.988822,3226.5,3225.2,0.0021796]
[1768825558935,0.18509401,3226.8,3225.2,0.0021796]
[1768825559140,0.98887799,3226.7,3225.2,0.0021796]
[1768825559337,0.98887799,3226.6,3225.2,0.0021796]
[1768825559537,0.98887799,3226.5,3225.2,0.0021796]
[1768825559737,0.98887799,3226.4,3225.2,0.0021796]
[1768825560236,1.173972,3226.4,3225.2,0.0021796]
[1768825560432,1.173972,3226.3,3225.2,0.0021796]
[1768825560641,1.46755431,3226.1,3224.5,3.101]
[1768825560839,0.98887799,3226.0,3224.5,3.101]
[1768825561041,1.46755431,3226.1,3224.5,3.101]
[1768825561245,0.98878522,3226.0,3224.5,3.101]
[1768825561435,1.46755431,3226.1,3224.5,3.101]
[1768825561639,0.98860804,3226.0,3224.5,3.10442498]
[1768825561838,0.98860804,3225.9,3224.5,3.10442498]
[1768825562141,0.98860804,3225.8,3224.5,3.10442498]
[1768825562445,0.18509401,3226.0,3224.5,3.10442498]
[1768825562632,0.9883844,3225.9,3224.5,3.10442498]
[1768825562943,0.9883844,3225.8,3224.5,3.10442498]
[1768825563143,0.18509401,3226.0,3224.5,3.10442498]
[1768825563346,0.98838528,3225.9,3224.5,3.10442498]
[1768825563545,0.98838528,3225.8,3224.5,3.10442498]
[1768825563747,0.18509401,3226.0,3224.5,0.00342498]
[1768825564048,0.98928613,3225.9,3224.7,0.15513]
[1768825564237,0.18509401,3226.4,3224.7,0.15513]
[1768825564439,0.98935198,3226.3,3224.7,0.15513]
[1768825564641,0.98935198,3226.2,3224.7,0.15513]
[1768825564937,0.98935198,3226.1,3224.7,0.15513]
[1768825565141,0.98935198,3226.0,3224.7,0.15513]
[1768825565344,0.18509401,3226.4,3224.7,0.15513]
[1768825565641,0.9893882,3226.3,3224.7,0.15513]
[1768825565842,0.9893882,3226.2,3224.7,0.15513]
[1768825566038,0.9893882,3226.1,3224.7,0.15513]
[1768825566241,0.9893882,3226.0,3224.7,0.15513]
[1768825566442,0.18509401,3226.4,3224.7,0.35046521]
[1768825566644,0.98959883,3226.3,3224.7,0.35046521]
[1768825566937,0.98959883,3226.2,3224.7,0.35046521]
[1768825567137,0.98959883,3226.1,3224.7,0.35046521]
[1768825567332,0.98959883,3226.0,3224.7,0.35046521]
[1768825567533,0.98959883,3225.9,3224.7,0.35046521]
[1768825567742,5.3194418,3226.8,3224.9,0.19533521]
[1768825567743,0.18509401,3226.8,3224.9,0.19533521]
[1768825568046,2.76579578,3226.7,3224.9,0.19533521]
[1768825568244,1.17488979,3226.6,3224.9,0.19533521]
[1768825568446,0.98979578,3226.5,3224.9,0.19533521]
[1768825568748,0.98979578,3226.4,3224.9,0.19533521]
[1768825568944,0.98979578,3226.3,3224.9,0.19533521]
[1768825569248,0.18509401,3226.6,3224.9,0.19533521]
[1768825569249,0.98979578,3226.2,3224.9,0.19533521]
[1768825569547,0.98979578,3226.1,3224.9,0.19533521]
[1768825569738,0.18509401,3226.6,3224.9,0.19533521]
[1768825569941,1.17482651,3226.5,3224.9,0.19533521]
[1768825570140,0.9897325,3226.4,3224.9,0.19533521]
[1768825570345,0.9897325,3226.3,3224.9,0.19533521]
[1768825570551,0.9897325,3226.2,3224.9,0.19533521]
[1768825570741,0.9897325,3226.1,3224.9,0.19533521]
[1768825570940,1.46755431,3226.5,3224.9,0.19533521]
[1768825571141,0.98971033,3226.4,3224.9,0.19533521]
[1768825571345,0.98971033,3226.3,3224.9,0.19533521]
[1768825571548,0.98971033,3226.2,3224.9,0.19533521]
[1768825571851,0.98971033,3226.1,3224.9,0.19533521]
[1768825572057,0.18509401,3226.5,3224.9,0.19533521]
[1768825572240,0.98968459,3226.4,3224.9,0.19533521]
[1768825572444,0.98968459,3226.3,3224.9,0.19533521]
[1768825572754,0.98968459,3226.2,3224.9,0.19533521]
[1768825573052,0.18509401,3226.5,3224.9,0.19533521]
[1768825573053,0.98968459,3226.1,3224.9,0.19533521]
[1768825573354,0.18509401,3226.5,3224.9,0.19533521]
[1768825573539,0.98971409,3226.4,3224.9,0.19533521]
[1768825573747,0.34012401,3226.9,3225.1,0.19533521]
[1768825573952,2.7658202,3226.8,3225.1,0.19533521]
[1768825574156,0.9898202,3226.7,3225.1,0.19533521]
[1768825574449,0.9898202,3226.6,3225.1,0.19533521]
[1768825574647,0.9898202,3226.5,3225.1,0.19533521]
[1768825574847,0.9898202,3226.4,3225.1,0.19533521]
[1768825575047,0.9898202,3226.3,3225.1,0.35044521]
[1768825575252,3.39858431,3226.9,3225.1,0.35044521]
[1768825575445,0.9898888,3226.8,3225.1,0.35044521]
[1768825575646,0.9898888,3226.7,3225.1,0.35044521]
[1768825575946,0.9898888,3226.6,3225.1,0.35044521]
[1768825576146,0.9898888,3226.5,3225.1,0.35044521]
[1768825576345,0.9898888,3226.4,3225.1,0.35044521]
[1768825576550,0.9898888,3226.3,3225.3,0.19533521]
[1768825576754,3.39858431,3226.9,3225.3,0.19533521]
[1768825576950,0.98993429,3226.8,3225.3,0.19533521]
[1768825577158,0.98993429,3226.7,3225.3,0.19533521]
[1768825577359,0.98993429,3226.6,3225.3,0.19533521]
[1768825577661,0.98993429,3226.5,3225.3,0.19533521]
[1768825577852,0.98993429,3226.4,3225.3,0.19533521]
[1768825578054,0.98993429,3226.3,3225.3,0.19533521]
[1768825578255,1.66349502,3226.8,3225.3,0.19533521]
[1768825578560,2.653516,3226.8,3225.3,0.19533521]
[1768825582055,2.83861001,3226.8,3225.3,0.19533521]
[1768825582255,1.17511499,3226.7,3225.2,0.15511]
[1768825582451,0.99002098,3226.6,3225.2,0.15511]
[1768825583865,0.99002098,3226.6,3225.0,0.15511]
[1768825584169,0.99002098,3226.6,3225.0,0.35352442]
[1768825584363,0.99002098,3226.6,3225.1,0.15511]
[1768825587560,0.18509401,3226.7,3225.1,0.15511]
[1768825587765,0.99060714,3226.6,3225.1,0.15511]
[1768825587965,0.99060714,3226.5,3225.1,0.15511]
[1768825588161,0.99060714,3226.4,3225.1,0.15511]
[1768825588466,0.99060714,3226.3,3225.1,0.15511]
[1768825588763,0.99060714,3226.2,3225.1,0.15511]
[1768825588967,0.18509401,3226.7,3225.1,0.15511]
[1768825589161,0.99067789,3226.6,3225.1,0.15511]
[1768825589362,0.99067789,3226.5,3225.1,0.15511]
[1768825589562,0.99067789,3226.4,3225.1,0.15511]
[1768825589761,1.47401304,3226.2,3224.7,0.15513]
[1768825589967,0.99067789,3226.1,3224.7,0.15513]
[1768825590156,0.99067789,3226.0,3224.8,0.19841442]
[1768825590360,0.99067789,3225.9,3224.8,0.19841442]
[1768825590560,1.776,3226.3,3224.8,0.19841442]
[1768825590770,0.99054351,3226.2,3224.8,0.19841442]
[1768825590969,0.99054351,3226.1,3224.8,0.19841442]
[1768825591265,0.99054351,3226.0,3224.8,0.19841442]
[1768825591467,0.99054351,3225.9,3224.8,0.19841442]
[1768825591662,1.776,3226.3,3224.8,0.19841442]
[1768825591859,0.9905278,3226.2,3224.8,0.19841442]
[1768825592058,0.9905278,3226.1,3224.8,0.19841442]
[1768825592262,0.9905278,3226.0,3224.8,0.19841442]
[1768825592466,0.9905278,3225.9,3224.8,0.19841442]
[1768825592663,1.776,3226.3,3224.8,0.19841442]
[1768825592865,0.99060048,3226.2,3224.8,0.19841442]
[1768825593166,0.99060048,3226.1,3224.8,0.19841442]
[1768825593366,0.99060048,3226.0,3224.8,0.19841442]
[1768825593567,0.99060048,3225.9,3224.8,0.19841442]
[1768825593770,1.776,3226.3,3224.8,0.19841442]
[1768825593969,0.99125254,3226.2,3224.8,0.19841442]
[1768825594169,0.99125254,3226.1,3224.8,0.19841442]
[1768825594373,0.99125254,3226.0,3224.8,0.19841442]
[1768825594571,0.99125254,3225.9,3224.8,0.19841442]
[1768825594772,1.776,3226.3,3224.8,0.19841442]
[1768825594977,0.99125808,3226.2,3224.8,0.19841442]
[1768825595166,0.99125808,3226.1,3224.8,0.19841442]
[1768825595367,0.99125808,3226.0,3224.8,0.19841442]
[1768825595569,0.99125808,3225.9,3224.8,0.19841442]
[1768825595874,1.776,3226.3,3224.8,0.19841442]
[1768825596075,0.99125571,3226.2,3224.8,0.19841442]
[1768825596262,0.99125571,3226.1,3224.8,0.19841442]
[1768825596464,0.99125571,3226.0,3224.8,0.19841442]
[1768825596665,0.99125571,3225.9,3224.8,0.19841442]
[1768825596869,1.776,3226.3,3224.8,0.19841442]
[1768825597065,0.99125524,3226.2,3224.8,0.19841442]
[1768825597279,0.99125524,3226.1,3224.8,0.19841442]
[1768825597482,0.99125524,3226.0,3224.8,0.19841442]
[1768825597676,0.99125524,3225.9,3224.8,0.19841442]
[1768825597976,0.99120868,3225.8,3224.7,0.15513]
[1768825598171,1.2824603,3226.2,3224.7,0.15513]
[1768825598371,0.99123681,3226.1,3224.7,0.15513]
[1768825598571,0.99123681,3226.0,3224.7,0.15513]
[1768825598774,0.99123681,3225.9,3224.7,0.15513]
[1768825598978,0.99123681,3225.8,3224.7,0.15513]
[1768825599178,0.19155274,3226.3,3224.8,0.35354442]
[1768825599379,0.99130755,3226.2,3224.9,0.19841442]
[1768825599677,0.99130755,3226.1,3224.9,0.35353442]
[1768825599881,0.99130755,3226.0,3224.9,0.35353442]
[1768825600181,1.142,3226.4,3224.9,0.35353442]
[1768825600377,0.99130311,3226.3,3224.9,0.35353442]
[1768825600577,0.99130311,3226.2,3224.9,0.35353442]
[1768825600773,0.99130311,3226.1,3224.9,0.35353442]
[1768825600978,1.776,3226.5,3224.9,0.35353442]
[1768825601182,0.99131275,3226.4,3224.9,0.35353442]
[1768825605782,2.27377305,3226.4,3224.9,0.35353442]
[1768825605984,0.99131275,3226.3,3224.9,0.35353442]
[1768825609182,0.99131275,3226.3,3225.0,0.20165697]
[1768825609387,0.99131275,3226.3,3225.0,0.35677697]
[1768825609590,0.99131275,3226.2,3225.1,0.15511]
[1768825609788,1.776,3226.5,3225.1,0.35676697]
[1768825609986,0.99216091,3226.4,3225.1,0.35676697]
[1768825610191,0.99216091,3226.3,3225.2,0.35676697]
[1768825610381,0.99216091,3226.2,3225.2,0.35676697]
[1768825610582,3.43949502,3226.8,3225.2,0.35676697]
[1768825610782,0.99215465,3226.7,3225.2,0.35676697]
[1768825610985,0.99215465,3226.6,3225.2,0.35676697]
[1768825611186,0.99215465,3226.5,3225.2,0.35676697]
[1768825611376,0.99215465,3226.4,3225.2,0.35676697]
[1768825611582,0.99215465,3226.3,3225.2,0.35676697]
[1768825611781,0.99215465,3226.2,3225.2,0.35676697]
[1768825611982,3.43949502,3226.8,3225.2,0.35676697]
[1768825612289,0.9921461,3226.7,3225.2,0.35676697]
[1768825612489,0.9921461,3226.6,3225.2,0.35676697]
[1768825612785,0.99215602,3226.5,3225.4,0.1919488]
[1768825612990,0.99215602,3226.4,3225.4,0.1919488]
[1768825613192,0.99215602,3226.3,3225.4,0.1919488]
[1768825613491,3.43949502,3226.9,3225.4,0.1919488]
[1768825613693,0.99210187,3226.8,3225.4,0.1919488]
[1768825613992,0.99210187,3226.7,3225.4,0.1919488]
[1768825614190,0.99210187,3226.6,3225.4,0.1919488]
[1768825614382,0.99210187,3226.5,3225.4,0.1919488]
[1768825614583,0.99210187,3226.4,3225.4,0.1919488]
[1768825614783,0.99210187,3226.3,3225.5,0.15509]
[1768825614987,1.97635662,3226.9,3225.5,0.15509]
[1768825615190,0.99204999,3226.8,3225.5,0.15509]
[1768825615386,0.99204999,3226.7,3225.5,0.15509]
[1768825615591,0.99204999,3226.6,3225.5,0.15509]
[1768825615887,0.99204999,3226.5,3225.5,0.15509]
[1768825616088,0.99204999,3226.4,3225.5,0.15509]
[1768825616393,1.97635662,3226.9,3225.5,0.15509]
[1768825616592,0.9920411,3226.8,3225.5,0.15509]
[1768825616792,1.97635662,3226.9,3225.5,0.15509]
[1768825616793,0.9920411,3226.7,3225.5,0.15509]
[1768825617092,0.9920411,3226.6,3225.5,0.15509]
[1768825617292,0.9920411,3226.5,3225.5,0.15509]
[1768825617492,0.9920411,3226.4,3225.5,0.15509]
[1768825617695,1.97635662,3226.9,3225.5,0.15509]
[1768825617895,0.99201639,3226.8,3225.5,0.15509]
[1768825618096,0.99201639,3226.7,3225.5,0.15509]
[1768825618295,0.99201639,3226.6,3225.5,0.15509]
[1768825618598,0.99201639,3226.5,3225.5,0.15509]
[1768825618791,0.99201639,3226.4,3225.5,0.15509]
[1768825618989,1.28233283,3226.6,3225.5,0.15509]
[1768825619196,0.99208525,3226.5,3225.5,0.15509]
[1768825619403,0.99208525,3226.4,3225.5,0.15509]
[1768825619592,1.28233283,3226.6,3225.5,0.15509]
[1768825619901,0.99204679,3226.5,3225.5,0.15509]
[1768825620199,0.99204679,3226.4,3225.5,0.15509]
[1768825620390,1.28233283,3226.6,3225.5,0.15509]
[1768825620585,0.99209414,3226.5,3225.5,0.15509]
[1768825620798,0.99209414,3226.4,3225.5,0.15509]
[1768825620993,1.28233283,3226.6,3225.5,0.15509]
[1768825621195,0.99206824,3226.5,3225.5,0.15509]
[1768825621395,1.28233283,3226.6,3225.5,0.15509]
[1768825621598,0.99204201,3226.5,3225.5,0.15509]
[1768825621805,1.28233283,3226.6,3225.5,0.15509]
[1768825622093,0.20035662,3226.9,3225.5,0.15509]
[1768825622296,0.99221997,3226.8,3225.5,0.15509]
[1768825622491,0.99221997,3226.7,3225.5,0.15509]
[1768825622692,0.99221997,3226.6,3225.5,0.15509]
[1768825622891,0.20035662,3226.9,3225.5,0.15509]
[1768825623190,0.99196056,3226.8,3225.5,0.15509]
[1768825623392,0.99196056,3226.7,3225.5,0.15509]
[1768825623592,0.99196056,3226.6,3225.5,0.15509]
[1768825623893,0.20035662,3226.9,3225.5,0.15509]
[1768825624093,0.99113338,3226.8,3225.5,0.15509]
[1768825624286,0.99113338,3226.7,3225.5,0.15509]
[1768825624490,0.20035662,3226.9,3225.5,0.15509]
[1768825624691,0.99105722,3226.8,3225.5,0.15509]
[1768825624895,0.99105722,3226.7,3225.5,0.15509]
[1768825625094,0.99105722,3226.6,3225.5,0.15509]
[1768825625298,0.20035662,3226.9,3225.5,0.15509]
[1768825625499,0.99099015,3226.8,3225.5,0.15509]
[1768825625706,0.99099015,3226.7,3225.5,0.15509]
[1768825625899,0.99099015,3226.6,3225.5,0.15509]
[1768825626093,0.20035662,3226.9,3225.5,0.15509]
[1768825626293,0.99081984,3226.8,3225.5,0.15509]
[1768825626495,0.99081984,3226.7,3225.5,0.15509]
[1768825626699,0.99081984,3226.6,3225.5,0.15509]
[1768825626900,0.20035662,3226.9,3225.5,0.15509]
[1768825627102,0.99079389,3226.8,3225.6,0.1919488]
[1768825627302,0.99079389,3226.7,3225.6,0.3470388]
[1768825627503,1.28233283,3227.1,3225.6,0.3470388]
[1768825627706,0.99077656,3227.0,3225.6,0.3470388]
[1768825627905,0.99077656,3226.9,3225.6,0.3470388]
[1768825628101,0.99077656,3226.8,3225.6,0.3470388]
[1768825628406,0.99077656,3226.7,3225.6,0.3470388]
[1768825628708,2.27317603,3226.6,3225.6,0.3470388]
[1768825628898,1.28233283,3226.6,3225.6,0.3470388]
[1768825630204,0.20035662,3227.1,3225.6,0.15509]
[1768825630506,0.20035662,3227.1,3225.2,0.1919488]
[1768825630507,1.28233283,3226.5,3225.7,0.15508]
[1768825633614,0.20035662,3227.1,3225.1,0.15511]
[1768825633615,1.28233283,3225.9,3225.1,0.15511]
[1768825634109,1.28233283,3226.2,3225.1,0.15511]
[1768825635304,1.28233283,3225.9,3225.1,0.15511]
[1768825635812,1.28233283,3226.2,3225.1,0.15511]
[1768825638314,0.99128802,3226.1,3225.1,0.15511]
[1768825638517,1.28233283,3225.9,3225.1,0.15511]
[1768825639311,1.28233283,3225.6,3224.5,0.15856498]
[1768825639517,1.28233283,3225.3,3224.5,0.15856498]
[1768825640015,1.28233283,3225.0,3224.5,0.00342498]
[1768825640214,0.20035662,3225.7,3224.5,0.00342498]
[1768825640215,1.28233283,3225.2,3224.5,0.00257965]